fUST/lending_fUST_20250821
["ID","MTS","AMOUNT","RATE_DAILY","PERIOD"]
[380388926,1755723023792,160.0,0.0002727,60]
[380388930,1755723031942,1000.0,0.0002727,60]
[380389009,1755723038207,-203.74137101,0.00019206,2]
[380389011,1755723038216,-116.25862899,0.000198,2]
[380389013,1755723038227,-202.94324983,0.000198,2]
[380389015,1755723038237,-2573.21552707,0.000198,2]
[380389017,1755723038246,-319.20187878,0.00020563,2]
[380389019,1755723038256,-1248.2299351,0.00020835,2]
[380389021,1755723038265,-319.20187878,0.00021326,2]
[380389023,1755723038274,-926.15445716,0.00021634,2]
[380389025,1755723038283,-919.0,0.0002177,2]
[380389027,1755723038293,-1248.2299351,0.00021771,2]
[380389029,1755723038302,-319.20187878,0.00022089,2]
[380389031,1755723038311,-423.82,0.000226,2]
[380389033,1755723038320,-300.0,0.00022705,2]
[380389035,1755723038330,-1248.2299351,0.00022706,2]
[380389037,1755723038339,-165.5239725,0.00022748,2]
[380389040,1755723038349,-11474.76396047,0.00022952,2]
[380389045,1755723038364,-38525.23603953,0.00022952,2]
[380389048,1755723038374,-224.289036,0.00022952,2]
[380389051,1755723038383,-500.0,0.00022973,2]
[380389053,1755723038392,-160.0,0.00023,2]
[380389057,1755723038402,-232.24568399,0.000232,2]
[380389060,1755723038422,-160.0,0.000232,2]
[380389063,1755723038434,-160.0,0.000232,2]
[380389066,1755723038443,-216.9170744,0.00023204,2]
[380389069,1755723038452,-268.25135886,0.00023273,2]
[380389072,1755723038461,-500.0,0.00023273,2]
[380389074,1755723038471,-500.06002785,0.00023273,2]
[380389077,1755723038480,-500.0,0.000233,2]
[380389079,1755723038488,-500.0,0.000233,2]
[380389081,1755723038498,-500.0,0.000233,2]
[380389083,1755723038510,-500.59189067,0.000233,2]
[380389085,1755723038519,-1248.2299351,0.00023642,2]
[380389087,1755723038528,-1248.2299351,0.00024577,2]
[380389098,1755723038620,-154.56,0.00024628,7]
[380389100,1755723038629,-420.0,0.00024655,2]
[380389102,1755723038639,-500.0,0.00024673,2]
[380389104,1755723038648,-154.56,0.00024728,7]
[380389107,1755723038657,-500.0,0.00024773,2]
[380389109,1755723038666,-250.0,0.00024817,2]
[380389111,1755723038676,-154.56,0.00024828,7]
[380389113,1755723038685,-154.56,0.00024928,7]
[380389114,1755723038694,-336.02920062,0.0002497,2]
[380389116,1755723038705,-154.56,0.00025028,7]
[380389118,1755723038714,-154.56,0.00025128,7]
[380389120,1755723038723,-154.56,0.00025228,7]
[380389122,1755723038732,-581.0009137,0.00025274,2]
[380389124,1755723038741,-154.56,0.00025328,7]
[380389126,1755723038750,-215.82729805,0.00025364,2]
[380389128,1755723038759,-375.94359665,0.00025365,2]
[380389130,1755723038768,-844.05985274,0.00025365,2]
[380389132,1755723038776,-154.56,0.00025428,7]
[380389134,1755723038786,-2183.31810187,0.00025475,2]
[380389136,1755723038795,-1248.2299351,0.00025513,3]
[380389138,1755723038804,-154.56,0.00025528,7]
[380389140,1755723038813,-2264.10087164,0.0002553,2]
[380389142,1755723038822,-2347.87260389,0.00025585,2]
[380389144,1755723038831,-154.56,0.00025628,7]
[380389146,1755723038841,-2434.74389024,0.0002564,2]
[380389148,1755723038850,-214.0,0.00025687,7]
[380389150,1755723038859,-2524.82941417,0.00025695,2]
[380389152,1755723038868,-154.56,0.00025728,7]
[380389154,1755723038878,-10659.1284497,0.00025729,2]
[380389156,1755723038887,-516.89140403,0.00025739,2]
[380389158,1755723038896,-500.0,0.00025739,2]
[380389160,1755723038905,-149323.229295,0.0002574,2]
[380389162,1755723038915,-2618.2481025,0.0002575,2]
[380389164,1755723038923,-2718.7809866,0.00025764,2]
[380389166,1755723038932,-176.55079087,0.0002579,2]
[380389168,1755723038942,-172.39176777,0.000258,2]
[380389170,1755723038951,-2715.12328229,0.00025805,2]
[380389172,1755723038960,-154.56,0.00025828,7]
[380389174,1755723038971,-10659.1284497,0.00025854,2]
[380389176,1755723038980,-1000.0,0.00025856,5]
[380389178,1755723038989,-2815.58284374,0.0002586,2]
[380389180,1755723038999,-149323.229295,0.00025865,2]
[380389182,1755723039008,-3553.04281657,0.00025865,2]
[380389184,1755723039017,-500.0,0.00025873,2]
[380389186,1755723039027,-500.0,0.00025873,2]
[380389188,1755723039036,-484.81535733,0.00025873,2]
[380389190,1755723039045,-160.31438668,0.00025873,2]
[380389192,1755723039055,-500.0,0.00025873,2]
[380389194,1755723039064,-500.0,0.00025873,2]
[380389196,1755723039073,-500.43512046,0.00025873,2]
[380389198,1755723039082,-500.0,0.00025873,2]
[380389200,1755723039091,-500.0,0.00025873,2]
[380389202,1755723039100,-1000.0,0.00025874,2]
[380389204,1755723039109,-1000.0,0.00025874,2]
[380389206,1755723039118,-1000.0,0.00025874,2]
[380389208,1755723039127,-151.0,0.00025874,2]
[380389210,1755723039136,-151.0,0.00025874,2]
[380389212,1755723039145,-151.0,0.00025874,2]
[380389214,1755723039154,-1000.0,0.00025874,2]
[380389216,1755723039163,-300.0,0.00025874,2]
[380389218,1755723039172,-1000.0,0.00025874,2]
[380389220,1755723039181,-151.0,0.00025874,2]
[380389221,1755723039190,-300.0,0.00025874,2]
[380389223,1755723039199,-151.0,0.00025874,2]
[380389225,1755723039207,-1000.0,0.00025874,2]
[380389227,1755723039217,-151.0,0.00025874,2]
[380389229,1755723039226,-151.0,0.00025874,2]
[380389231,1755723039235,-300.0,0.00025874,2]
[380389233,1755723039244,-151.0,0.00025874,2]
[380389235,1755723039253,-1000.0,0.00025874,2]
[380389237,1755723039262,-151.0,0.00025874,2]
[380389239,1755723039271,-151.0,0.00025874,2]
[380389241,1755723039280,-300.0,0.00025874,2]
[380389243,1755723039289,-151.0,0.00025874,2]
[380389245,1755723039298,-1000.0,0.00025874,2]
[380389247,1755723039307,-151.0,0.00025874,2]
[380389249,1755723039316,-151.0,0.00025874,2]
[380389251,1755723039325,-151.0,0.00025874,2]
[380389253,1755723039335,-300.0,0.00025874,2]
[380389255,1755723039344,-151.0,0.00025874,2]
[380389257,1755723039353,-151.0,0.00025874,2]
[380389259,1755723039362,-300.0,0.00025874,2]
[380389261,1755723039372,-151.0,0.00025874,2]
[380389263,1755723039381,-250.0,0.00025874,2]
[380389265,1755723039390,-1000.0,0.00025874,2]
[380389267,1755723039399,-151.0,0.00025874,2]
[380389269,1755723039409,-151.0,0.00025874,2]
[380389271,1755723039422,-300.0,0.00025874,2]
[380389273,1755723039431,-151.0,0.00025874,2]
[380389275,1755723039441,-250.0,0.00025874,2]
[380389277,1755723039450,-219.52615819,0.00025874,2]
[380389279,1755723039460,-151.0,0.00025874,2]
[380389281,1755723039469,-151.0,0.00025874,2]
[380389283,1755723039478,-151.0,0.00025874,2]
[380389285,1755723039488,-300.0,0.00025874,2]
[380389287,1755723039499,-250.0,0.00025874,2]
[380389289,1755723039510,-151.0,0.00025874,2]
[380389291,1755723039520,-151.0,0.00025874,2]
[380389293,1755723039530,-151.0,0.00025874,2]
[380389295,1755723039542,-151.0,0.00025874,2]
[380389297,1755723039552,-300.0,0.00025874,2]
[380389299,1755723039563,-250.0,0.00025874,2]
[380389301,1755723039573,-151.0,0.00025874,2]
[380389303,1755723039583,-151.0,0.00025874,2]
[380389305,1755723039593,-151.0,0.00025874,2]
[380389307,1755723039603,-151.0,0.00025874,2]
[380389309,1755723039613,-250.0,0.00025874,2]
[380389311,1755723039622,-300.0,0.00025874,2]
[380389313,1755723039631,-151.0,0.00025874,2]
[380389315,1755723039642,-151.0,0.00025874,2]
[380389317,1755723039651,-151.0,0.00025874,2]
[380389319,1755723039660,-151.0,0.00025874,2]
[380389321,1755723039670,-250.0,0.00025874,2]
[380389323,1755723039679,-300.0,0.00025874,2]
[380389325,1755723039688,-151.0,0.00025874,2]
[380389327,1755723039698,-151.0,0.00025874,2]
[380389329,1755723039707,-151.0,0.00025874,2]
[380389331,1755723039717,-300.0,0.00025874,2]
[380389345,1755723039798,-250.0,0.00025874,2]
[380389348,1755723039808,-151.0,0.00025874,2]
[380389350,1755723039817,-151.0,0.00025874,2]
[380389352,1755723039826,-151.0,0.00025874,2]
[380389354,1755723039835,-151.0,0.00025874,2]
[380389356,1755723039845,-300.0,0.00025874,2]
[380389358,1755723039854,-151.0,0.00025874,2]
[380389360,1755723039863,-151.0,0.00025874,2]
[380389362,1755723039873,-151.0,0.00025874,2]
[380389365,1755723039882,-151.0,0.00025874,2]
[380389367,1755723039891,-250.0,0.00025874,2]
[380389369,1755723039900,-300.0,0.00025874,2]
[380389371,1755723039909,-151.0,0.00025874,2]
[380389373,1755723039918,-151.0,0.00025874,2]
[380389375,1755723039927,-151.0,0.00025874,2]
[380389377,1755723039937,-151.0,0.00025874,2]
[380389379,1755723039947,-288.3171568,0.00025874,2]
[380389381,1755723039955,-250.0,0.00025874,2]
[380389383,1755723039965,-152.1850379,0.00025874,2]
[380389385,1755723039974,-151.0,0.00025874,2]
[380389387,1755723039983,-151.0,0.00025874,2]
[380389389,1755723039992,-250.0,0.00025874,2]
[380389391,1755723040001,-151.0,0.00025874,2]
[380389393,1755723040010,-151.0,0.00025874,2]
[380389395,1755723040019,-250.0,0.00025874,2]
[380389397,1755723040028,-151.0,0.00025874,2]
[380389399,1755723040037,-151.0,0.00025874,2]
[380389401,1755723040045,-151.0,0.00025874,2]
[380389403,1755723040055,-151.0,0.00025874,2]
[380389405,1755723040064,-151.0,0.00025874,2]
[380389407,1755723040072,-250.0,0.00025874,2]
[380389409,1755723040081,-151.0,0.00025874,2]
[380389411,1755723040091,-151.0,0.00025874,2]
[380389413,1755723040101,-250.0,0.00025874,2]
[380389415,1755723040110,-151.0,0.00025874,2]
[380389417,1755723040119,-151.0,0.00025874,2]
[380389419,1755723040128,-250.0,0.00025874,2]
[380389421,1755723040137,-151.0,0.00025874,2]
[380389423,1755723040146,-151.0,0.00025874,2]
[380389425,1755723040155,-250.0,0.00025874,2]
[380389427,1755723040164,-151.0,0.00025874,2]
[380389429,1755723040173,-151.0,0.00025874,2]
[380389431,1755723040182,-151.0,0.00025874,2]
[380389433,1755723040191,-19187.29552238,0.00025874,2]
[380389435,1755723040199,-151.0,0.00025874,2]
[380389437,1755723040209,-151.0,0.00025874,2]
[380389438,1755723040218,-151.0,0.00025874,2]
[380389441,1755723040228,-151.0,0.00025874,2]
[380389442,1755723040237,-151.0,0.00025874,2]
[380389444,1755723040246,-151.0,0.00025874,2]
[380389446,1755723040254,-151.0,0.00025874,2]
[380389448,1755723040263,-151.0,0.00025874,2]
[380389450,1755723040273,-151.0,0.00025874,2]
[380389452,1755723040282,-151.0,0.00025874,2]
[380389454,1755723040291,-151.0,0.00025874,2]
[380389456,1755723040302,-258.00117691,0.00025874,2]
[380389458,1755723040311,-500.0,0.00025874,2]
[380389460,1755723040321,-500.0,0.00025874,2]
[380389462,1755723040330,-500.0,0.00025874,2]
[380389464,1755723040340,-500.0,0.00025874,2]
[380389466,1755723040349,-500.0,0.00025874,2]
[380389468,1755723040358,-500.0,0.00025874,2]
[380389470,1755723040367,-500.0,0.00025874,2]
[380389472,1755723040376,-500.0,0.00025874,2]
[380389474,1755723040386,-500.0,0.00025874,2]
[380389476,1755723040395,-500.0,0.00025874,2]
[380389478,1755723040404,-500.0,0.00025874,2]
[380389480,1755723040414,-500.0,0.00025874,2]
[380389482,1755723040426,-500.0,0.00025874,2]
[380389484,1755723040437,-500.0,0.00025874,2]
[380389486,1755723040446,-500.0,0.00025874,2]
[380389488,1755723040455,-10659.1284497,0.00025879,2]
[380389490,1755723040466,-469.47,0.0002588,3]
[380389492,1755723040475,-234.74,0.0002588,3]
[380389494,1755723040484,-704.24,0.0002588,3]
[380389496,1755723040496,-14212.1712663,0.0002588,2]
[380389498,1755723040506,-149323.229295,0.00025889,2]
[380389500,1755723040515,-160.0,0.00025889,2]
[380389502,1755723040524,-3553.04281657,0.0002589,2]
[380389504,1755723040534,-400.0,0.0002589,2]
[380389506,1755723040543,-200.0,0.0002589,3]
[380389508,1755723040553,-149323.229295,0.0002589,2]
[380389510,1755723040562,-17765.2140829,0.0002589,2]
[380389512,1755723040571,-684.120096,0.00025899,2]
[380389514,1755723040580,-1575.949575,0.00025899,2]
[380389516,1755723040590,-500.0,0.00025899,2]
[380389518,1755723040599,-1575.949575,0.00025899,2]
[380389520,1755723040609,-1575.949575,0.00025899,2]
[380389522,1755723040618,-1575.949575,0.00025899,2]
[380389524,1755723040627,-1575.949575,0.00025899,2]
[380389526,1755723040636,-500.0,0.00025899,2]
[380389528,1755723040645,-500.0,0.00025899,2]
[380389529,1755723040654,-1575.949575,0.00025899,2]
[380389531,1755723040663,-1575.949575,0.00025899,2]
[380389533,1755723040673,-1575.949575,0.00025899,2]
[380389535,1755723040682,-164.84798052,0.00025899,2]
[380389537,1755723040691,-500.0,0.00025899,2]
[380389539,1755723040700,-1575.949575,0.00025899,2]
[380389541,1755723040709,-1575.949575,0.00025899,2]
[380389543,1755723040720,-1575.949575,0.00025899,2]
[380389545,1755723040729,-1575.949575,0.00025899,2]
[380389547,1755723040738,-1575.949575,0.00025899,2]
[380389549,1755723040747,-1654.74705375,0.00025899,2]
[380389551,1755723040757,-1654.74705375,0.00025899,2]
[380389554,1755723040766,-1654.74705375,0.00025899,2]
[380389555,1755723040775,-1654.74705375,0.00025899,2]
[380389557,1755723040785,-1654.74705375,0.00025899,2]
[380389559,1755723040794,-1654.74705375,0.00025899,2]
[380389561,1755723040803,-1654.74705375,0.00025899,2]
[380389571,1755723040877,-1575.949575,0.00025899,2]
[380389572,1755723040886,-1674.84041085,0.00025899,2]
[380389574,1755723040895,-1674.84041085,0.00025899,2]
[380389576,1755723040904,-1674.84041085,0.00025899,2]
[380389578,1755723040914,-1674.84041085,0.00025899,2]
[380389581,1755723040923,-2120.14076983,0.000259,2]
[380389582,1755723040932,-61670.37662453,0.000259,2]
[380389596,1755723041262,-1391.79,0.000259,2]
[380389597,1755723041403,1000.0,0.0002727,60]
[380389607,1755723041519,-47292.0,0.000259,2]
[380389804,1755723043353,-681.8757257,0.000259,2]
[380390078,1755723046349,-302.10002581,0.00022852,2]
[380390081,1755723046361,-17.10185297,0.00022852,2]
[380390083,1755723046370,-76327.9769486,0.000259,2]
[380390085,1755723046381,-34437.23340979,0.000259,2]
[380390088,1755723046404,-678.92998736,0.000259,2]
[380390090,1755723046415,-7309.66472893,0.000259,2]
[380391045,1755723059197,1000.0,0.00027397,120]
[380391600,1755723066300,1000.0,0.00027397,120]
[380391828,1755723070540,1709.756755,0.00027397,120]
[380391829,1755723073366,1000.0,0.00027397,120]
[380391830,1755723081986,1000.0,0.00027397,120]
[380391831,1755723091260,200.0,0.00026814,120]
[380391832,1755723098487,1000.0,0.00027397,120]
[380391833,1755723105586,1000.0,0.00027397,120]
[380391834,1755723111538,1000.0,0.00027397,120]
[380391835,1755723119914,1000.0,0.00027397,120]
[380391836,1755723132243,1000.0,0.0002727,60]
[380391837,1755723148229,771.58402641,0.0002727,60]
[380391838,1755723162040,1000.0,0.00027397,120]
[380391841,1755723513551,160.622069,0.00013699,2]
[380391854,1755723992212,1282.317566,0.00027397,120]
[380391855,1755723993133,-298.42655267,0.000192,2]
[380391860,1755724111198,200.0,0.00025976,120]
[380391913,1755724232701,-2701.57344733,0.000192,2]
[380391915,1755724232711,-300.0,0.00019799,2]
[380391917,1755724232720,-300.0,0.00019799,2]
[380391919,1755724232730,-300.0,0.00019799,2]
[380391921,1755724232739,-306.0,0.00019799,2]
[380391923,1755724232750,-300.0,0.00019799,2]
[380391925,1755724232760,-20279.24471237,0.000198,2]
[380391927,1755724232776,-393.13424247,0.000198,2]
[380391941,1755724232911,-106.86575753,0.000198,2]
[380391943,1755724232921,-1208.69063067,0.000199,2]
[380391945,1755724232930,-975.62755931,0.00020835,2]
[380391947,1755724232942,-233.06307114,0.00020835,2]
[380391949,1755724232951,-420.0,0.00021563,2]
[380391951,1755724232961,-1208.69063045,0.00021771,2]
[380391953,1755724232971,-1208.69063045,0.00022706,2]
[380391955,1755724232981,-1054.0,0.00023199,2]
[380391957,1755724232990,-44648.41874314,0.000232,2]
[380391988,1755724238517,-5351.58125686,0.000232,2]
[380391989,1755724238526,-271.64496179,0.00023273,2]
[380391990,1755724238535,-500.0,0.00023273,2]
[380391991,1755724238544,-500.0,0.00023273,2]
[380391992,1755724238554,-375.94359665,0.00023312,2]
[380391993,1755724238563,-844.05985274,0.00023312,2]
[380391994,1755724238572,-215.82729805,0.00023312,2]
[380391995,1755724238581,-160.0,0.00023312,2]
[380391996,1755724238590,-232.24568399,0.00023312,2]
[380391997,1755724238599,-216.9170744,0.00023312,2]
[380391998,1755724238608,-224.289037,0.00023407,2]
[380391999,1755724238618,-587.0,0.00023485,2]
[380392000,1755724238627,-2183.31810187,0.00023784,2]
[380392001,1755724238636,-2264.10087164,0.00023839,2]
[380392002,1755724238645,-2347.87260389,0.00023894,2]
[380392003,1755724238654,-2434.74389024,0.00023949,2]
[380392004,1755724238663,-500.0,0.00023973,2]
[380392006,1755724238673,-484.81535733,0.00023973,2]
[380392008,1755724238682,-500.0,0.00023973,2]
[380392009,1755724238691,-500.0,0.00023973,2]
[380392011,1755724238700,-500.0,0.00023973,2]
[380392013,1755724238709,-500.0,0.00023973,2]
[380392015,1755724238718,-500.0,0.00023973,2]
[380392017,1755724238727,-500.0,0.00023975,2]
[380392019,1755724238737,-516.89140403,0.00023975,2]
[380392021,1755724238746,-151.0,0.00023976,2]
[380392023,1755724238755,-151.0,0.00023976,2]
[380392025,1755724238765,-151.0,0.00023976,2]
[380392027,1755724238777,-151.0,0.00023976,2]
[380392029,1755724238786,-151.0,0.00023976,2]
[380392031,1755724238795,-151.0,0.00023976,2]
[380392033,1755724238805,-19187.29552238,0.00023976,2]
[380392035,1755724238815,-151.0,0.00023976,2]
[380392037,1755724238824,-151.0,0.00023976,2]
[380392039,1755724238833,-151.0,0.00023976,2]
[380392041,1755724238843,-151.0,0.00023976,2]
[380392043,1755724238853,-151.0,0.00023976,2]
[380392045,1755724238862,-258.00117691,0.00023976,2]
[380392047,1755724238871,-151.0,0.00023976,2]
[380392049,1755724238881,-151.0,0.00023976,2]
[380392051,1755724238889,-151.0,0.00023976,2]
[380392053,1755724238899,-151.0,0.00023976,2]
[380392055,1755724238908,-151.0,0.00023976,2]
[380392057,1755724238918,-151.0,0.00023976,2]
[380392059,1755724238927,-151.0,0.00023976,2]
[380392061,1755724238936,-151.0,0.00023976,2]
[380392063,1755724238945,-151.0,0.00023976,2]
[380392065,1755724238954,-151.0,0.00023976,2]
[380392067,1755724238963,-151.0,0.00023976,2]
[380392069,1755724238972,-151.0,0.00023976,2]
[380392071,1755724238982,-151.0,0.00023976,2]
[380392073,1755724238991,-151.0,0.00023976,2]
[380392075,1755724239001,-151.0,0.00023976,2]
[380392076,1755724239010,-151.0,0.00023976,2]
[380392078,1755724239020,-151.0,0.00023976,2]
[380392080,1755724239029,-151.0,0.00023976,2]
[380392081,1755724239039,-151.0,0.00023976,2]
[380392082,1755724239048,-250.0,0.00023976,2]
[380392083,1755724239057,-151.0,0.00023976,2]
[380392084,1755724239066,-151.0,0.00023976,2]
[380392085,1755724239076,-151.0,0.00023976,2]
[380392086,1755724239085,-151.0,0.00023976,2]
[380392088,1755724239095,-250.0,0.00023976,2]
[380392090,1755724239105,-151.0,0.00023976,2]
[380392092,1755724239114,-151.0,0.00023976,2]
[380392094,1755724239123,-151.0,0.00023976,2]
[380392096,1755724239133,-151.0,0.00023976,2]
[380392098,1755724239142,-151.0,0.00023976,2]
[380392100,1755724239151,-250.0,0.00023976,2]
[380392102,1755724239162,-151.0,0.00023976,2]
[380392104,1755724239171,-151.0,0.00023976,2]
[380392106,1755724239180,-151.0,0.00023976,2]
[380392108,1755724239189,-151.0,0.00023976,2]
[380392110,1755724239198,-151.0,0.00023976,2]
[380392112,1755724239207,-250.0,0.00023976,2]
[380392114,1755724239216,-151.0,0.00023976,2]
[380392116,1755724239225,-151.0,0.00023976,2]
[380392118,1755724239234,-151.0,0.00023976,2]
[380392120,1755724239243,-151.0,0.00023976,2]
[380392121,1755724239253,-151.0,0.00023976,2]
[380392122,1755724239262,-300.0,0.00023976,2]
[380392123,1755724239271,-151.0,0.00023976,2]
[380392124,1755724239280,-250.0,0.00023976,2]
[380392125,1755724239289,-151.0,0.00023976,2]
[380392127,1755724239298,-151.0,0.00023976,2]
[380392129,1755724239307,-151.0,0.00023976,2]
[380392131,1755724239316,-151.0,0.00023976,2]
[380392133,1755724239325,-300.0,0.00023976,2]
[380392135,1755724239335,-250.0,0.00023976,2]
[380392137,1755724239344,-151.0,0.00023976,2]
[380392139,1755724239353,-151.0,0.00023976,2]
[380392141,1755724239362,-151.0,0.00023976,2]
[380392143,1755724239371,-300.0,0.00023976,2]
[380392145,1755724239380,-151.0,0.00023976,2]
[380392147,1755724239389,-151.0,0.00023976,2]
[380392149,1755724239399,-151.0,0.00023976,2]
[380392151,1755724239407,-250.0,0.00023976,2]
[380392153,1755724239417,-151.0,0.00023976,2]
[380392155,1755724239426,-151.0,0.00023976,2]
[380392157,1755724239435,-300.0,0.00023976,2]
[380392159,1755724239443,-151.0,0.00023976,2]
[380392161,1755724239453,-151.0,0.00023976,2]
[380392162,1755724239463,-151.0,0.00023976,2]
[380392164,1755724239472,-151.0,0.00023976,2]
[380392166,1755724239482,-250.0,0.00023976,2]
[380392168,1755724239491,-151.0,0.00023976,2]
[380392170,1755724239502,-151.0,0.00023976,2]
[380392181,1755724239511,-151.0,0.00023976,2]
[380392182,1755724239606,-151.0,0.00023976,2]
[380392183,1755724239614,-250.0,0.00023976,2]
[380392184,1755724239623,-300.0,0.00023976,2]
[380392185,1755724239632,-151.0,0.00023976,2]
[380392186,1755724239641,-151.0,0.00023976,2]
[380392187,1755724239650,-151.0,0.00023976,2]
[380392188,1755724239659,-300.0,0.00023976,2]
[380392189,1755724239667,-151.0,0.00023976,2]
[380392190,1755724239676,-151.0,0.00023976,2]
[380392191,1755724239685,-300.0,0.00023976,2]
[380392192,1755724239695,-151.0,0.00023976,2]
[380392193,1755724239703,-250.0,0.00023976,2]
[380392194,1755724239712,-151.0,0.00023976,2]
[380392195,1755724239721,-151.0,0.00023976,2]
[380392196,1755724239730,-300.0,0.00023976,2]
[380392197,1755724239739,-250.0,0.00023976,2]
[380392198,1755724239748,-151.0,0.00023976,2]
[380392199,1755724239758,-300.0,0.00023976,2]
[380392200,1755724239767,-250.0,0.00023976,2]
[380392201,1755724239780,-152.1850379,0.00023976,2]
[380392202,1755724239789,-250.0,0.00023976,2]
[380392203,1755724239798,-300.0,0.00023976,2]
[380392204,1755724239807,-250.0,0.00023976,2]
[380392205,1755724239816,-300.0,0.00023976,2]
[380392206,1755724239825,-250.0,0.00023976,2]
[380392207,1755724239834,-300.0,0.00023976,2]
[380392208,1755724239844,-1000.0,0.00023976,2]
[380392209,1755724239855,-300.0,0.00023976,2]
[380392210,1755724239865,-1000.0,0.00023976,2]
[380392211,1755724239874,-300.0,0.00023976,2]
[380392212,1755724239883,-288.3171568,0.00023976,2]
[380392213,1755724239892,-1000.0,0.00023976,2]
[380392214,1755724239901,-1000.0,0.00023976,2]
[380392215,1755724239910,-1000.0,0.00023976,2]
[380392216,1755724239920,-1000.0,0.00023976,2]
[380392217,1755724239929,-1000.0,0.00023976,2]
[380392218,1755724239938,-1000.0,0.00023976,2]
[380392219,1755724239947,-1000.0,0.00023976,2]
[380392220,1755724239956,-219.52615819,0.00023976,2]
[380392221,1755724239965,-500.0,0.00023976,2]
[380392222,1755724239974,-500.0,0.00023976,2]
[380392223,1755724239983,-500.0,0.00023976,2]
[380392224,1755724239993,-500.0,0.00023976,2]
[380392226,1755724240002,-500.0,0.00023976,2]
[380392229,1755724240012,-500.0,0.00023976,2]
[380392232,1755724240022,-78018.21269123,0.0002399,2]
[380392234,1755724240031,-2524.82941417,0.00024004,2]
[380392235,1755724240041,-2618.2481025,0.00024059,2]
[380392236,1755724240050,-2715.12328229,0.00024114,2]
[380392238,1755724240059,-2815.58284374,0.00024169,2]
[380392240,1755724240069,-2919.75940895,0.00024224,2]
[380392243,1755724240078,-3027.79050709,0.00024279,2]
[380392245,1755724240088,-1000.0,0.00024521,2]
[380392246,1755724240098,-1000.0,0.00024521,2]
[380392247,1755724240107,-1001.34172822,0.00024521,2]
[380392248,1755724240116,-155.18,0.00024547,7]
[380392249,1755724240125,-150.0,0.000246,2]
[380392251,1755724240135,-151.0,0.000247,9]
[380392252,1755724240144,-7293.69646098,0.0002479,2]
[380392253,1755724240153,-1493.57136995,0.00024798,2]
[380392254,1755724240162,-1980.02386062,0.000248,2]
[380392255,1755724240171,-151.0,0.000248,5]
[380392256,1755724240180,-172.39176774,0.00024862,2]
[380392257,1755724240188,-459.81,0.00024864,3]
[380392258,1755724240198,-306.53,0.0002487,3]
[380392259,1755724240207,-660.00795354,0.0002487,2]
[380392260,1755724240216,-500.0,0.00024873,2]
[380392261,1755724240225,-160.31438668,0.00024873,2]
[380392262,1755724240235,-500.43512046,0.00024873,2]
[380392264,1755724240244,-660.00795354,0.00024875,2]
[380392265,1755724240254,-153.27,0.00024878,3]
[380392266,1755724240264,-704.23,0.0002488,3]
[380392267,1755724240273,-613.06,0.0002488,3]
[380392268,1755724240283,-5280.06362832,0.0002488,2]
[380392269,1755724240292,-660.00795354,0.00024889,2]
[380392270,1755724240302,-370000.0,0.0002489,2]
[380392271,1755724240311,-1449.873609,0.00024899,2]
[380392272,1755724240320,-500.0,0.00024899,2]
[380392273,1755724240330,-1449.873609,0.00024899,2]